[Event "Late-Titled-Tuesday-Blitz-October-24-2023"]
[Site "Chess.com"]
[Date "2023.10.24"]
[Round "7"]
[White "Alphafischer2019"]
[Black "DefiantChair"]
[Result "0-1"]
[WhiteElo "2601"]
[BlackElo "2681"]
[TimeControl "180+1"]
[EndTime "15:15:15 PDT"]
[Termination "DefiantChair won by resignation"]

1. e4 {[%clk 0:03:00.9]} 1... c5 {[%clk 0:02:58.2]} 2. Nf3 {[%clk 0:02:59.2]}
2... d6 {[%clk 0:02:58.4]} 3. g3 {[%clk 0:02:58.2]} 3... Nc6 {[%clk 0:02:57.4]}
4. Bg2 {[%clk 0:02:58.6]} 4... g6 {[%clk 0:02:58.1]} 5. O-O {[%clk 0:02:56.2]}
5... Bg7 {[%clk 0:02:58.8]} 6. c3 {[%clk 0:02:56.7]} 6... e5 {[%clk 0:02:58.1]}
7. d3 {[%clk 0:02:55.8]} 7... Nge7 {[%clk 0:02:58.1]} 8. h4 {[%clk 0:02:53.1]}
8... O-O {[%clk 0:02:56.9]} 9. h5 {[%clk 0:02:52.9]} 9... Bg4 {[%clk 0:02:55.7]}
10. h6 {[%clk 0:02:51.6]} 10... Bh8 {[%clk 0:02:55.8]} 11. Bg5 {[%clk
0:02:48.3]} 11... f6 {[%clk 0:02:56]} 12. Qb3+ {[%clk 0:02:43.2]} 12... Rf7
{[%clk 0:02:55.1]} 13. Be3 {[%clk 0:02:42.7]} 13... Na5 {[%clk 0:02:51.7]} 14.
Qa4 {[%clk 0:02:36.7]} 14... Bd7 {[%clk 0:02:49.1]} 15. Qc2 {[%clk 0:02:34.3]}
15... Nac6 {[%clk 0:02:45.9]} 16. Na3 {[%clk 0:02:30.7]} 16... f5 {[%clk
0:02:43.1]} 17. Ng5 {[%clk 0:02:26.7]} 17... Bf6 {[%clk 0:02:38.7]} 18. Nxf7
{[%clk 0:02:26.4]} 18... Kxf7 {[%clk 0:02:39.6]} 19. f4 {[%clk 0:02:26.1]} 19...
exf4 {[%clk 0:02:38.1]} 20. Bxf4 {[%clk 0:02:22.3]} 20... Be6 {[%clk 0:02:37.3]}
21. Nc4 {[%clk 0:02:20.6]} 21... Ne5 {[%clk 0:02:33.2]} 22. Ne3 {[%clk
0:02:07.2]} 22... Qd7 {[%clk 0:02:23.2]} 23. d4 {[%clk 0:02:03.6]} 23... cxd4
{[%clk 0:02:21.3]} 24. cxd4 {[%clk 0:02:02.7]} 24... Rc8 {[%clk 0:02:20.7]} 25.
Qd2 {[%clk 0:02:00]} 25... Nc4 {[%clk 0:02:19]} 26. Nxc4 {[%clk 0:01:47]} 26...
Bxc4 {[%clk 0:02:18.8]} 27. Rf2 {[%clk 0:01:41.8]} 27... fxe4 {[%clk 0:02:13]}
28. Bg5 {[%clk 0:01:41.7]} 28... Nf5 {[%clk 0:02:12.2]} 29. Bxf6 {[%clk
0:01:41.6]} 29... e3 {[%clk 0:02:08.5]} 30. Rxf5 {[%clk 0:01:02.3]} 30... exd2
{[%clk 0:02:07.6]} 31. Rf2 {[%clk 0:01:01.8]} 31... Qg4 {[%clk 0:01:34.9]} 32.
Bg5+ {[%clk 0:00:55.4]} 32... Kg8 {[%clk 0:01:28.6]} 33. Bxd2 {[%clk 0:00:55.3]}
33... Qxg3 {[%clk 0:01:26.9]} 34. Re1 {[%clk 0:00:54.8]} 34... Bd5 {[%clk
0:01:22.9]} 35. Bf4 {[%clk 0:00:53]} 35... Qg4 {[%clk 0:01:20]} 36. Ref1 {[%clk
0:00:20.4]} 36... Bxg2 {[%clk 0:01:12.7]} 37. Rxg2 {[%clk 0:00:19.9]} 37... Qd7
{[%clk 0:01:11.7]} 38. Bg5 {[%clk 0:00:14.1]} 38... Rf8 {[%clk 0:01:08.2]} 39.
Rxf8+ {[%clk 0:00:12.7]} 39... Kxf8 {[%clk 0:01:09.1]} 40. Rf2+ {[%clk
0:00:13.2]} 40... Kg8 {[%clk 0:01:09.5]} 41. Bf6 {[%clk 0:00:12.2]} 41... Qg4+
{[%clk 0:01:07.6]} 42. Kf1 {[%clk 0:00:11.5]} 42... Qh3+ {[%clk 0:01:06]} 43.
Ke1 {[%clk 0:00:10.3]} 43... Qxh6 {[%clk 0:01:05.6]} 44. Re2 {[%clk 0:00:08.6]}
44... Qc1+ {[%clk 0:01:04.3]} 45. Kf2 {[%clk 0:00:07.4]} 45... Qf4+ {[%clk
0:01:04.2]} 46. Ke1 {[%clk 0:00:08]} 46... Qxf6 {[%clk 0:01:05.1]} 47. Re4
{[%clk 0:00:07.1]} 47... d5 {[%clk 0:01:05.1]} 48. Rf4 {[%clk 0:00:06.5]} 48...
Qxf4 {[%clk 0:01:05.1]} 0-1

[Event "Late-Titled-Tuesday-Blitz-October-24-2023"]
[Site "Chess.com"]
[Date "2023.10.24"]
[Round "7"]
[White "Maluco_do_Natal_00"]
[Black "talaicito"]
[Result "0-1"]
[WhiteElo "2027"]
[BlackElo "2232"]
[TimeControl "180+1"]
[EndTime "15:15:15 PDT"]
[Termination "talaicito won on time"]

1. e4 {[%clk 0:03:00.9]} 1... b6 {[%clk 0:03:00.9]} 2. d4 {[%clk 0:02:58.8]}
2... Bb7 {[%clk 0:03:01.8]} 3. Bd3 {[%clk 0:02:57.5]} 3... g6 {[%clk 0:03:02]}
4. Nf3 {[%clk 0:02:57.7]} 4... Bg7 {[%clk 0:03:02.6]} 5. c4 {[%clk 0:02:58]}
5... e6 {[%clk 0:03:03.3]} 6. Nc3 {[%clk 0:02:58.3]} 6... Ne7 {[%clk 0:03:03.8]}
7. O-O {[%clk 0:02:58.2]} 7... h6 {[%clk 0:03:03.8]} 8. Re1 {[%clk 0:02:57.4]}
8... d6 {[%clk 0:03:04.2]} 9. Be3 {[%clk 0:02:47.2]} 9... Nd7 {[%clk 0:03:04.5]}
10. Qd2 {[%clk 0:02:45.5]} 10... a6 {[%clk 0:03:01.9]} 11. a3 {[%clk 0:02:44.6]}
11... g5 {[%clk 0:03:02.1]} 12. Qe2 {[%clk 0:02:34.3]} 12... Ng6 {[%clk
0:03:01.2]} 13. g3 {[%clk 0:02:25.7]} 13... g4 {[%clk 0:02:55.2]} 14. Nd2 {[%clk
0:02:22.5]} 14... h5 {[%clk 0:02:55.4]} 15. Rad1 {[%clk 0:02:00]} 15... Qe7
{[%clk 0:02:53.2]} 16. f4 {[%clk 0:01:45.2]} 16... gxf3 {[%clk 0:02:44.5]} 17.
Nxf3 {[%clk 0:01:44.8]} 17... h4 {[%clk 0:02:42.2]} 18. d5 {[%clk 0:01:38.8]}
18... e5 {[%clk 0:02:30.4]} 19. Rf1 {[%clk 0:01:30.5]} 19... hxg3 {[%clk
0:02:06.2]} 20. hxg3 {[%clk 0:01:28.4]} 20... O-O-O {[%clk 0:02:04.1]} 21. Kg2
{[%clk 0:01:25.7]} 21... Bh6 {[%clk 0:01:55.6]} 22. Rh1 {[%clk 0:01:24]} 22...
Bxe3 {[%clk 0:01:52.7]} 23. Qxe3 {[%clk 0:01:23.8]} 23... Rhg8 {[%clk
0:01:44.3]} 24. Kf2 {[%clk 0:01:18]} 24... Nf6 {[%clk 0:01:34.9]} 25. Ke2 {[%clk
0:00:48.3]} 25... Kb8 {[%clk 0:01:33.6]} 26. Rdg1 {[%clk 0:00:41.9]} 26... Bc8
{[%clk 0:01:31.8]} 27. Kd2 {[%clk 0:00:39.6]} 27... Ng4 {[%clk 0:01:18.7]} 28.
Qe2 {[%clk 0:00:23.4]} 28... Rdf8 {[%clk 0:01:18.2]} 29. Nh4 {[%clk 0:00:17.1]}
29... Nxh4 {[%clk 0:01:13.6]} 30. Rxh4 {[%clk 0:00:15.8]} 30... Qg5+ {[%clk
0:01:12]} 31. Kc2 {[%clk 0:00:13.7]} 31... Ne3+ {[%clk 0:01:08.2]} 32. Kb3
{[%clk 0:00:11]} 32... f5 {[%clk 0:01:00.8]} 33. exf5 {[%clk 0:00:10.3]} 33...
Nxf5 {[%clk 0:00:59.9]} 34. Bxf5 {[%clk 0:00:08.1]} 34... Bxf5 {[%clk
0:00:59.3]} 35. Rh2 {[%clk 0:00:07]} 35... Bg4 {[%clk 0:00:54.3]} 36. Qd2 {[%clk
0:00:06.4]} 36... Rf3 {[%clk 0:00:49.2]} 37. Qxg5 {[%clk 0:00:05.4]} 37... Rxg5
{[%clk 0:00:49.7]} 38. Rh8+ {[%clk 0:00:05.1]} 38... Kb7 {[%clk 0:00:49.2]} 39.
Rh4 {[%clk 0:00:03.5]} 39... Bf5 {[%clk 0:00:45.7]} 40. Kb4 {[%clk 0:00:02.2]}
40... a5+ {[%clk 0:00:44]} 41. Kb3 {[%clk 0:00:01.1]} 41... Rgxg3 {[%clk
0:00:40.3]} 42. Rxg3 {[%clk 0:00:01.1]} 42... Rxg3 {[%clk 0:00:40.6]} 0-1

[Event "Late-Titled-Tuesday-Blitz-October-24-2023"]
[Site "Chess.com"]
[Date "2023.10.24"]
[Round "7"]
[White "Meri-Arabidze"]
[Black "Gogolev_Artemy"]
[Result "1-0"]
[WhiteElo "2625"]
[BlackElo "2422"]
[TimeControl "180+1"]
[EndTime "15:15:16 PDT"]
[Termination "Meri-Arabidze won on time"]

1. Nf3 {[%clk 0:02:55.9]} 1... Nf6 {[%clk 0:02:58.8]} 2. b3 {[%clk 0:02:56.2]}
2... g6 {[%clk 0:02:56.9]} 3. Bb2 {[%clk 0:02:56.2]} 3... Bg7 {[%clk 0:02:57.5]}
4. g3 {[%clk 0:02:56.8]} 4... O-O {[%clk 0:02:55.7]} 5. Bg2 {[%clk 0:02:57.1]}
5... d5 {[%clk 0:02:55.2]} 6. O-O {[%clk 0:02:56.4]} 6... c5 {[%clk 0:02:53.6]}
7. c4 {[%clk 0:02:56.7]} 7... Nc6 {[%clk 0:02:46.6]} 8. cxd5 {[%clk 0:02:56.6]}
8... Nxd5 {[%clk 0:02:43.8]} 9. Bxg7 {[%clk 0:02:57.5]} 9... Kxg7 {[%clk
0:02:44.3]} 10. Qc1 {[%clk 0:02:57.9]} 10... Qd6 {[%clk 0:01:58.3]} 11. Nc3
{[%clk 0:02:57.8]} 11... Nxc3 {[%clk 0:01:51.8]} 12. Qxc3+ {[%clk 0:02:57.7]}
12... f6 {[%clk 0:01:48.5]} 13. Rac1 {[%clk 0:02:41.1]} 13... b6 {[%clk
0:01:46.9]} 14. d4 {[%clk 0:02:28.3]} 14... Nxd4 {[%clk 0:01:43.4]} 15. Nxd4
{[%clk 0:02:28.3]} 15... cxd4 {[%clk 0:01:36.7]} 16. Qc7 {[%clk 0:02:27.9]}
16... Rb8 {[%clk 0:01:31]} 17. Qxd6 {[%clk 0:02:22.9]} 17... exd6 {[%clk
0:01:31.1]} 18. Rfd1 {[%clk 0:02:23]} 18... Ba6 {[%clk 0:01:21]} 19. Bf3 {[%clk
0:02:00.7]} 19... d3 {[%clk 0:01:13.4]} 20. exd3 {[%clk 0:02:00.6]} 20... Rbc8
{[%clk 0:01:12.9]} 21. Bc6 {[%clk 0:01:58]} 21... Rfd8 {[%clk 0:00:53]} 22. b4
{[%clk 0:01:53.6]} 22... Rc7 {[%clk 0:00:43.5]} 23. b5 {[%clk 0:01:52.8]} 23...
Bc8 {[%clk 0:00:43.2]} 24. Re1 {[%clk 0:01:50.1]} 24... d5 {[%clk 0:00:29.4]}
25. d4 {[%clk 0:01:48.7]} 25... Bd7 {[%clk 0:00:21.8]} 26. Re7+ {[%clk
0:01:44.5]} 26... Kh6 {[%clk 0:00:16.1]} 27. Rce1 {[%clk 0:01:38.6]} 27... a6
{[%clk 0:00:08.5]} 28. a4 {[%clk 0:01:37]} 28... a5 {[%clk 0:00:08.3]} 29. h4
{[%clk 0:01:35.6]} 29... f5 {[%clk 0:00:06.5]} 30. Kh2 {[%clk 0:01:32.6]} 30...
Rxc6 {[%clk 0:00:05.3]} 31. bxc6 {[%clk 0:01:32]} 31... Bxc6 {[%clk 0:00:06.2]}
32. R1e6 {[%clk 0:01:19.2]} 32... Rd7 {[%clk 0:00:05.5]} 33. Rxd7 {[%clk
0:01:16.2]} 33... Bxd7 {[%clk 0:00:06.4]} 34. Rxb6 {[%clk 0:01:16.6]} 34... Bxa4
{[%clk 0:00:07]} 35. Ra6 {[%clk 0:01:16.7]} 35... Bb3 {[%clk 0:00:06.9]} 36.
Rxa5 {[%clk 0:01:16.8]} 36... Kh5 {[%clk 0:00:07.4]} 37. Ra7 {[%clk 0:01:14.5]}
37... h6 {[%clk 0:00:06.4]} 38. Rh7 {[%clk 0:01:14.2]} 38... Bc2 {[%clk
0:00:05.7]} 39. f3 {[%clk 0:01:11.9]} 39... f4 {[%clk 0:00:03.7]} 40. Rd7 {[%clk
0:00:51]} 40... fxg3+ {[%clk 0:00:01.7]} 41. Kxg3 {[%clk 0:00:51.9]} 41... Bb3
{[%clk 0:00:02.1]} 42. f4 {[%clk 0:00:49.2]} 42... Bc4 {[%clk 0:00:01.8]} 43.
Re7 {[%clk 0:00:47.3]} 43... Bd3 {[%clk 0:00:01.4]} 44. Re5+ {[%clk 0:00:47.2]}
1-0

[Event "Late-Titled-Tuesday-Blitz-October-24-2023"]
[Site "Chess.com"]
[Date "2023.10.24"]
[Round "7"]
[White "HansOnTwitch"]
[Black "baag"]
[Result "1-0"]
[WhiteElo "3037"]
[BlackElo "2859"]
[TimeControl "180+1"]
[EndTime "15:15:21 PDT"]
[Termination "HansOnTwitch won on time"]

1. e4 {[%clk 0:02:58.1]} 1... c6 {[%clk 0:03:00.3]} 2. Nf3 {[%clk 0:02:56.1]}
2... d5 {[%clk 0:03:00.8]} 3. d3 {[%clk 0:02:55.6]} 3... dxe4 {[%clk 0:02:58.8]}
4. dxe4 {[%clk 0:02:53.5]} 4... Qxd1+ {[%clk 0:02:59.7]} 5. Kxd1 {[%clk
0:02:54.4]} 5... Nf6 {[%clk 0:03:00.6]} 6. Nfd2 {[%clk 0:02:54.9]} 6... g5
{[%clk 0:02:57.2]} 7. f3 {[%clk 0:02:53.9]} 7... h5 {[%clk 0:02:55]} 8. Nc4
{[%clk 0:02:54.2]} 8... g4 {[%clk 0:02:51.2]} 9. a4 {[%clk 0:02:54]} 9... Be6
{[%clk 0:02:46.5]} 10. Be3 {[%clk 0:02:54]} 10... Nbd7 {[%clk 0:02:30.4]} 11.
Nbd2 {[%clk 0:02:54.2]} 11... gxf3 {[%clk 0:02:28.3]} 12. gxf3 {[%clk
0:02:54.3]} 12... Bh6 {[%clk 0:02:28.6]} 13. Bxh6 {[%clk 0:02:50]} 13... Rxh6
{[%clk 0:02:29.5]} 14. Rg1 {[%clk 0:02:49.3]} 14... O-O-O {[%clk 0:02:28]} 15.
Ke2 {[%clk 0:02:48.9]} 15... Rhh8 {[%clk 0:02:05.5]} 16. Ke3 {[%clk 0:02:47]}
16... Rhg8 {[%clk 0:02:05.9]} 17. Be2 {[%clk 0:02:45.4]} 17... Kc7 {[%clk
0:01:57.1]} 18. h4 {[%clk 0:02:40.1]} 18... Rxg1 {[%clk 0:01:41.3]} 19. Rxg1
{[%clk 0:02:41]} 19... b5 {[%clk 0:01:41.8]} 20. axb5 {[%clk 0:02:32.1]} 20...
cxb5 {[%clk 0:01:42.7]} 21. Na5 {[%clk 0:02:32.5]} 21... Kb6 {[%clk 0:01:10.4]}
22. Rg5 {[%clk 0:02:29.4]} 22... a6 {[%clk 0:01:00]} 23. b4 {[%clk 0:02:29.2]}
23... Rc8 {[%clk 0:00:51.1]} 24. c4 {[%clk 0:02:26.4]} 24... bxc4 {[%clk
0:00:52]} 25. Naxc4+ {[%clk 0:02:20.3]} 25... Ka7 {[%clk 0:00:49.4]} 26. Ra5
{[%clk 0:02:20.4]} 26... Nb8 {[%clk 0:00:38.1]} 27. b5 {[%clk 0:02:13.2]} 27...
Kb7 {[%clk 0:00:29.6]} 28. bxa6+ {[%clk 0:02:11.3]} 28... Nxa6 {[%clk
0:00:30.5]} 29. Nd6+ {[%clk 0:01:58.4]} 29... exd6 {[%clk 0:00:30.8]} 30. Bxa6+
{[%clk 0:01:58.9]} 30... Kb6 {[%clk 0:00:31.6]} 31. Bxc8 {[%clk 0:01:58.8]}
31... Kxa5 {[%clk 0:00:32.4]} 32. Bxe6 {[%clk 0:01:59.6]} 32... fxe6 {[%clk
0:00:33.3]} 33. Nc4+ {[%clk 0:02:00.3]} 33... Kb5 {[%clk 0:00:33.5]} 34. Nxd6+
{[%clk 0:02:01.2]} 34... Kc6 {[%clk 0:00:34.1]} 35. Nf7 {[%clk 0:02:01.7]} 35...
Kd7 {[%clk 0:00:30.9]} 36. Kf4 {[%clk 0:02:01.8]} 36... Ke7 {[%clk 0:00:31.3]}
37. Ne5 {[%clk 0:02:01.8]} 37... Nh7 {[%clk 0:00:31.3]} 38. Nc6+ {[%clk
0:01:49.3]} 38... Kf6 {[%clk 0:00:29.9]} 39. e5+ {[%clk 0:01:45.5]} 39... Kf7
{[%clk 0:00:21.7]} 40. Nd4 {[%clk 0:01:41.7]} 40... Ke7 {[%clk 0:00:16.2]} 41.
Ne2 {[%clk 0:01:35.9]} 41... Kf7 {[%clk 0:00:15.7]} 42. Ng3 {[%clk 0:01:36.5]}
42... Kg6 {[%clk 0:00:16.1]} 43. Ne4 {[%clk 0:01:37.2]} 43... Nf8 {[%clk
0:00:12.8]} 44. Ng5 {[%clk 0:01:26.2]} 44... Kg7 {[%clk 0:00:11]} 45. Ke4 {[%clk
0:01:24.1]} 45... Ng6 {[%clk 0:00:03.4]} 46. Nxe6+ {[%clk 0:01:23.9]} 46... Kf7
{[%clk 0:00:02.9]} 47. Nf4 {[%clk 0:01:16.2]} 47... Nxh4 {[%clk 0:00:03]} 48.
Nxh5 {[%clk 0:01:16.9]} 48... Kg6 {[%clk 0:00:02.3]} 49. Nf4+ {[%clk 0:01:16.2]}
49... Kg5 {[%clk 0:00:03.1]} 50. Ne6+ {[%clk 0:01:16.5]} 50... Kg6 {[%clk
0:00:03.4]} 51. Nd4 {[%clk 0:01:17.4]} 51... Kf7 {[%clk 0:00:01.8]} 52. f4
{[%clk 0:01:17.7]} 52... Ng6 {[%clk 0:00:01.8]} 53. f5 {[%clk 0:01:17.6]} 53...
Ne7 {[%clk 0:00:02.5]} 54. Nf3 {[%clk 0:01:15.6]} 54... Nc6 {[%clk 0:00:01.7]}
55. Ng5+ {[%clk 0:01:15.4]} 55... Kg7 {[%clk 0:00:02.4]} 56. Kd5 {[%clk
0:01:13.4]} 56... Nd8 {[%clk 0:00:01.4]} 57. Ne6+ {[%clk 0:01:12.9]} 1-0

[Event "Late-Titled-Tuesday-Blitz-October-24-2023"]
[Site "Chess.com"]
[Date "2023.10.24"]
[Round "7"]
[White "dennisodessa"]
[Black "SergioMoralesG"]
[Result "1-0"]
[WhiteElo "2552"]
[BlackElo "2403"]
[TimeControl "180+1"]
[EndTime "15:15:21 PDT"]
[Termination "dennisodessa won by resignation"]

1. d4 {[%clk 0:02:59.9]} 1... d5 {[%clk 0:02:58]} 2. c4 {[%clk 0:03:00]} 2... c6
{[%clk 0:02:57.9]} 3. Nf3 {[%clk 0:02:59.8]} 3... Nf6 {[%clk 0:02:58.3]} 4. e3
{[%clk 0:03:00]} 4... Bf5 {[%clk 0:02:57.4]} 5. Nc3 {[%clk 0:02:59.1]} 5... e6
{[%clk 0:02:57.2]} 6. Nh4 {[%clk 0:02:59.8]} 6... Bg6 {[%clk 0:02:57.7]} 7. Qb3
{[%clk 0:02:59.6]} 7... Qc7 {[%clk 0:02:56.2]} 8. Bd2 {[%clk 0:02:58.2]} 8...
Be7 {[%clk 0:02:51.5]} 9. Rc1 {[%clk 0:02:58.1]} 9... a6 {[%clk 0:02:41.1]} 10.
h3 {[%clk 0:02:53.4]} 10... O-O {[%clk 0:02:33.1]} 11. Nxg6 {[%clk 0:02:51.4]}
11... hxg6 {[%clk 0:02:34]} 12. cxd5 {[%clk 0:02:51.9]} 12... exd5 {[%clk
0:02:33.3]} 13. Nxd5 {[%clk 0:02:52.4]} 13... Nxd5 {[%clk 0:02:13.7]} 14. Qxd5
{[%clk 0:02:53.3]} 14... Qb6 {[%clk 0:02:06.9]} 15. Qb3 {[%clk 0:02:44.4]} 15...
Qxb3 {[%clk 0:02:06.8]} 16. axb3 {[%clk 0:02:45.3]} 16... Nd7 {[%clk 0:02:07.4]}
17. Be2 {[%clk 0:02:41.7]} 17... Nf6 {[%clk 0:02:06.1]} 18. O-O {[%clk
0:02:38.3]} 18... Rfe8 {[%clk 0:02:02.7]} 19. Bf3 {[%clk 0:02:21]} 19... Bd6
{[%clk 0:02:00]} 20. Rc4 {[%clk 0:02:10.1]} 20... Ne4 {[%clk 0:01:53]} 21. Ba5
{[%clk 0:02:08.9]} 21... Re7 {[%clk 0:01:49.6]} 22. Rfc1 {[%clk 0:01:59]} 22...
Rae8 {[%clk 0:01:47.6]} 23. Bb4 {[%clk 0:01:58.6]} 23... Bxb4 {[%clk 0:01:37.2]}
24. Rxb4 {[%clk 0:01:59.5]} 24... Nd2 {[%clk 0:01:31.7]} 25. Be2 {[%clk
0:01:49.8]} 25... Rd8 {[%clk 0:01:14.5]} 26. Bd3 {[%clk 0:01:41.9]} 26... f5
{[%clk 0:01:02.1]} 27. Rc2 {[%clk 0:01:35.4]} 27... Ne4 {[%clk 0:01:01.5]} 28.
Bxe4 {[%clk 0:01:35.6]} 28... fxe4 {[%clk 0:01:01.4]} 29. Rc5 {[%clk 0:01:34.6]}
29... Kf7 {[%clk 0:00:50.4]} 30. Rbc4 {[%clk 0:01:27.4]} 30... Rd6 {[%clk
0:00:45.3]} 31. Rg5 {[%clk 0:01:21.8]} 31... Kf6 {[%clk 0:00:36.1]} 32. h4
{[%clk 0:01:18.6]} 32... Kf7 {[%clk 0:00:35.9]} 33. Rcc5 {[%clk 0:01:10.2]}
33... Rf6 {[%clk 0:00:14]} 34. Rce5 {[%clk 0:01:06.3]} 34... Rd7 {[%clk
0:00:12.2]} 35. Rxe4 {[%clk 0:01:03.9]} 35... Kg8 {[%clk 0:00:06.4]} 36. Ree5
{[%clk 0:00:57.9]} 36... Rdf7 {[%clk 0:00:05.3]} 37. f4 {[%clk 0:00:58.3]} 37...
Rd7 {[%clk 0:00:05.2]} 38. Kf2 {[%clk 0:00:57.5]} 38... Kh7 {[%clk 0:00:05.4]}
39. Kf3 {[%clk 0:00:58.1]} 39... Rc7 {[%clk 0:00:04.3]} 40. g4 {[%clk
0:00:57.8]} 40... b5 {[%clk 0:00:03.5]} 41. Rc5 {[%clk 0:00:50.7]} 41... a5
{[%clk 0:00:03.2]} 42. d5 {[%clk 0:00:50.4]} 42... Rd6 {[%clk 0:00:02]} 43. dxc6
{[%clk 0:00:43.3]} 43... Rdxc6 {[%clk 0:00:02]} 44. Rxc6 {[%clk 0:00:44.2]}
44... Rxc6 {[%clk 0:00:02.9]} 45. Rxb5 {[%clk 0:00:44.7]} 1-0

[Event "Late-Titled-Tuesday-Blitz-October-24-2023"]
[Site "Chess.com"]
[Date "2023.10.24"]
[Round "7"]
[White "C_K_G"]
[Black "NowInChess"]
[Result "1-0"]
[WhiteElo "1933"]
[BlackElo "2169"]
[TimeControl "180+1"]
[EndTime "15:15:22 PDT"]
[Termination "C_K_G won by checkmate"]

1. e4 {[%clk 0:02:56.7]} 1... e6 {[%clk 0:03:00.1]} 2. Nf3 {[%clk 0:02:55.1]}
2... d5 {[%clk 0:03:00.5]} 3. Nc3 {[%clk 0:02:54.8]} 3... Nf6 {[%clk 0:03:00.3]}
4. e5 {[%clk 0:02:54]} 4... Nfd7 {[%clk 0:03:00.5]} 5. d4 {[%clk 0:02:53.8]}
5... c5 {[%clk 0:03:00.7]} 6. Bg5 {[%clk 0:02:52.1]} 6... Qb6 {[%clk 0:03:00.5]}
7. dxc5 {[%clk 0:02:51.9]} 7... Bxc5 {[%clk 0:03:00.1]} 8. Qd2 {[%clk
0:02:51.3]} 8... Nc6 {[%clk 0:02:53.7]} 9. Bb5 {[%clk 0:02:36.4]} 9... a6 {[%clk
0:02:35.7]} 10. Bxc6 {[%clk 0:02:31.2]} 10... Qxc6 {[%clk 0:02:32]} 11. O-O
{[%clk 0:02:24.3]} 11... b5 {[%clk 0:02:12.4]} 12. a3 {[%clk 0:02:09.1]} 12...
Bb7 {[%clk 0:02:08.7]} 13. Rfe1 {[%clk 0:02:08.3]} 13... Nb6 {[%clk 0:01:46.5]}
14. Nd4 {[%clk 0:01:55]} 14... Qd7 {[%clk 0:01:30.7]} 15. b3 {[%clk 0:01:46.9]}
15... Rc8 {[%clk 0:01:25.3]} 16. Re3 {[%clk 0:01:38.1]} 16... Qc7 {[%clk
0:00:56.4]} 17. Nce2 {[%clk 0:01:20.7]} 17... Nd7 {[%clk 0:00:49.6]} 18. Bf4
{[%clk 0:00:46.3]} 18... a5 {[%clk 0:00:44.1]} 19. Bg3 {[%clk 0:00:33.9]} 19...
Qb6 {[%clk 0:00:40.2]} 20. c3 {[%clk 0:00:28.3]} 20... Be7 {[%clk 0:00:34.8]}
21. Rf3 {[%clk 0:00:22.6]} 21... Nc5 {[%clk 0:00:28]} 22. Qf4 {[%clk 0:00:20.1]}
22... O-O {[%clk 0:00:16.9]} 23. Qg4 {[%clk 0:00:19.5]} 23... Ne4 {[%clk
0:00:15.5]} 24. Bf4 {[%clk 0:00:17]} 24... Qd8 {[%clk 0:00:10.3]} 25. Bh6 {[%clk
0:00:15.7]} 25... g6 {[%clk 0:00:10.4]} 26. Nf4 {[%clk 0:00:13.3]} 26... Re8
{[%clk 0:00:08.4]} 27. Nfxe6 {[%clk 0:00:12]} 27... fxe6 {[%clk 0:00:04]} 28.
Qxe6+ {[%clk 0:00:11.9]} 28... Kh8 {[%clk 0:00:03.6]} 29. Qf7 {[%clk 0:00:10]}
29... Rg8 {[%clk 0:00:02.4]} 30. Ne6 {[%clk 0:00:08.8]} 30... Qe8 {[%clk
0:00:02.1]} 31. Bg7+ {[%clk 0:00:08.7]} 31... Rxg7 {[%clk 0:00:01.9]} 32. Qxg7#
{[%clk 0:00:09.1]} 1-0

[Event "Late-Titled-Tuesday-Blitz-October-24-2023"]
[Site "Chess.com"]
[Date "2023.10.24"]
[Round "7"]
[White "NateSolon"]
[Black "HajiyevKanan"]
[Result "1-0"]
[WhiteElo "2658"]
[BlackElo "2501"]
[TimeControl "180+1"]
[EndTime "15:15:25 PDT"]
[Termination "NateSolon won by checkmate"]

1. d4 {[%clk 0:02:54.5]} 1... c6 {[%clk 0:03:00.9]} 2. Nf3 {[%clk 0:02:52.4]}
2... d5 {[%clk 0:03:01.8]} 3. Bf4 {[%clk 0:02:52.3]} 3... Nf6 {[%clk 0:03:02.1]}
4. e3 {[%clk 0:02:51.6]} 4... a6 {[%clk 0:02:56.8]} 5. c4 {[%clk 0:02:51.3]}
5... Bf5 {[%clk 0:02:56.7]} 6. Nc3 {[%clk 0:02:49.9]} 6... e6 {[%clk 0:02:56.6]}
7. Qb3 {[%clk 0:02:47.7]} 7... b5 {[%clk 0:02:55]} 8. c5 {[%clk 0:02:40.2]} 8...
Be7 {[%clk 0:02:31.5]} 9. h3 {[%clk 0:02:39.9]} 9... O-O {[%clk 0:02:30.9]} 10.
Be2 {[%clk 0:02:30.4]} 10... a5 {[%clk 0:02:31.3]} 11. O-O {[%clk 0:02:19.8]}
11... a4 {[%clk 0:02:31.8]} 12. Qd1 {[%clk 0:02:19.2]} 12... Qa5 {[%clk
0:02:29.4]} 13. a3 {[%clk 0:02:12.1]} 13... Nbd7 {[%clk 0:02:29.5]} 14. Nh4
{[%clk 0:02:08]} 14... Ne4 {[%clk 0:02:27.9]} 15. Nxf5 {[%clk 0:02:06.5]} 15...
exf5 {[%clk 0:02:28.8]} 16. Na2 {[%clk 0:01:55.7]} 16... Rfe8 {[%clk 0:02:06.2]}
17. Nb4 {[%clk 0:01:53.1]} 17... Rac8 {[%clk 0:02:05.8]} 18. Bd3 {[%clk
0:01:41.7]} 18... g6 {[%clk 0:02:04.8]} 19. g4 {[%clk 0:01:32.6]} 19... fxg4
{[%clk 0:02:01.2]} 20. hxg4 {[%clk 0:01:33.5]} 20... Ndf6 {[%clk 0:01:56.5]} 21.
f3 {[%clk 0:01:27.7]} 21... g5 {[%clk 0:01:53.6]} 22. Bh2 {[%clk 0:01:27.4]}
22... Nxc5 {[%clk 0:01:48.2]} 23. dxc5 {[%clk 0:01:25.8]} 23... Bxc5 {[%clk
0:01:49.1]} 24. Nc2 {[%clk 0:01:13]} 24... Bxe3+ {[%clk 0:01:37.3]} 25. Nxe3
{[%clk 0:01:12.9]} 25... Rxe3 {[%clk 0:01:38.2]} 26. Re1 {[%clk 0:01:10]} 26...
Rce8 {[%clk 0:01:35.5]} 27. Rxe3 {[%clk 0:01:08.7]} 27... Rxe3 {[%clk
0:01:36.4]} 28. Kg2 {[%clk 0:01:05.7]} 28... Qd8 {[%clk 0:00:59.4]} 29. Qd2
{[%clk 0:00:56.1]} 29... Qe8 {[%clk 0:00:54.4]} 30. Bg1 {[%clk 0:00:53.8]} 30...
Re5 {[%clk 0:00:53.8]} 31. Bd4 {[%clk 0:00:53.2]} 31... h6 {[%clk 0:00:28.9]}
32. Bxe5 {[%clk 0:00:51.1]} 32... Qxe5 {[%clk 0:00:29.8]} 33. Re1 {[%clk
0:00:50.7]} 33... Qd6 {[%clk 0:00:29.7]} 34. Qe3 {[%clk 0:00:43.7]} 34... Kg7
{[%clk 0:00:27.1]} 35. Qe5 {[%clk 0:00:39.3]} 35... Qc5 {[%clk 0:00:27.5]} 36.
Re2 {[%clk 0:00:34.6]} 36... Qc1 {[%clk 0:00:25.9]} 37. Qc3 {[%clk 0:00:31.6]}
37... Qf4 {[%clk 0:00:25.4]} 38. Qxc6 {[%clk 0:00:27.9]} 38... h5 {[%clk
0:00:24.2]} 39. gxh5 {[%clk 0:00:18.3]} 39... Nxh5 {[%clk 0:00:25.1]} 40. Qc3+
{[%clk 0:00:17.7]} 40... d4 {[%clk 0:00:24.6]} 41. Qc6 {[%clk 0:00:16]} 41...
Qg3+ {[%clk 0:00:24.6]} 42. Kf1 {[%clk 0:00:16.4]} 42... Nf4 {[%clk 0:00:24.5]}
43. Qe4 {[%clk 0:00:15.4]} 43... Qh4 {[%clk 0:00:20.6]} 44. Qxd4+ {[%clk
0:00:14.9]} 44... Kg8 {[%clk 0:00:16.1]} 45. Re8# {[%clk 0:00:14.1]} 1-0